Cogmind - Beta 16 --- EXPLORER MODE // 2025.12.29 @ 13:31:28 Player: K.K.Y. Result: Destroyed by 0I-HP4(R) with Subdweller Laser Performance ------------- Evolutions (0) 0 Regions Visited (3) 600 Robots Destroyed (40) 200 Value Destroyed (1007) 1007 Prototype IDs (12) 240 Alien Tech Used (0) 0 Bonus (-34) -34 TOTAL SCORE: 2013 Bonus ------- Friendly Fire -34 Cogmind --------- Core Integrity 0/250 Matter 300/300 Energy 100/100 System Corruption 0% Temperature Cool (6) Movement Core (350) Ox6 Location -10/Subcaves Parts ------- > --- POWER (1) -------- (None) > --- PROPULSION (2) --- (None) > --- UTILITY (3) ------ Large Storage Unit Structural Scanner > --- WEAPON (2) ------- (None) > --- INVENTORY (15) --- Light Nuclear Core Improved Heat Sink Improved Heat Sink High-capacity Storage Unit Huge Storage Unit Humpback Light Armor Plating Light Armor Plating Makeshift Light Armor Plating Makeshift Hacking Suite Multitool Peak State ------------ > --- POWER ------------ Improved Ion Engine > --- PROPULSION ------- Light Treads Light Treads > --- UTILITY ---------- Large Storage Unit Structural Scanner Sensor Array > --- WEAPON ----------- Beam Rifle Barrage Gun > --- INVENTORY -------- Light Nuclear Core Improved Heat Sink Improved Heat Sink High-capacity Storage Unit Huge Storage Unit Humpback Light Armor Plating Light Armor Plating Makeshift Light Armor Plating Makeshift Hacking Suite Multitool [Rating: 14] Favorites ----------- Power Ion Engine Engine Ion Engine Propulsion Light Treads Treads Light Treads Utility Structural Scanner Device Structural Scanner Storage Large Storage Unit Weapon Beam Cannon Energy Gun Beam Rifle Energy Cannon Beam Cannon Ballistic Gun Light Assault Rifle Special Weapon Mining Laser Build | -11 -10 -10 -10 ------- Run | Yrd Mat Min Sub Slots Evolved 1 | . 1 . . Power . | . . . . Propulsion . | . . . . Utility 1 | . 1 . . Weapon . | . . . . Parts Attached 25 | 7 4 4 10 Power 5 | 1 1 1 2 Engine 5 | 1 1 1 2 Core . | . . . . Reactor . | . . . . Propulsion 7 | 2 . 2 3 Treads 7 | 2 . 2 3 Leg . | . . . . Wheel . | . . . . Hover . | . . . . Flight . | . . . . Utility 4 | 2 2 . . Device 2 | 1 1 . . Storage 2 | 1 1 . . Processor . | . . . . Hackware . | . . . . Protection . | . . . . Artifact . | . . . . Weapon 9 | 2 1 1 5 Energy Gun 4 | 1 . 1 2 Energy Cannon 1 | . 1 . . Ballistic Gun 2 | 1 . . 1 Ballistic Cannon . | . . . . Launcher . | . . . . Special Weapon 2 | . . . 2 Impact Weapon . | . . . . Slashing Weapon . | . . . . Piercing Weapon . | . . . . Special Melee Weapon . | . . . . Unidentified Prototypes . | . . . . Parts Lost 14 | . . . 14 Power 3 | . . . 3 Propulsion 5 | . . . 5 Utility 1 | . . . 1 Weapon 5 | . . . 5 Highest Loss Streak 4 | . . . 4 To Critical Strikes . | . . . . Average Backups 10 | 1 5 12 11 Power . | . . 1 1 Propulsion . | . . 2 . Utility 6 | . 3 6 8 Weapon 1 | . 1 2 . Tool/Special . | . . . . Unused Backups 15 | . 1 . 14 Power 1 | . . . 1 Propulsion 1 | . . . 1 Utility 10 | . . . 10 Weapon 2 | . 1 . 1 Tool/Special 1 | . . . 1 Average Slot Usage (%) 88 | . 92 100 82 Engine 11 | . 10 12 11 Treads 20 | . 22 25 18 Device 20 | . 24 25 17 Storage 12 | . 12 12 12 Energy Gun 3 | . 1 3 4 Energy Cannon 5 | . 7 12 2 Ballistic Gun 8 | . 12 8 6 Special Weapon 3 | . . . 6 Peak Build Rating 14 | 7 9 11 14 Average Rating 9 | 6 7 9 11 On Entrance 6 | . 7 8 11 Avg Prop Armor Cover (%) . | . . . . Naked Turns . | . . . . Heaviest Build 35 | 16 31 33 35 Greatest Support 40 | 40 40 40 40 Greatest Overweight (x) 6 | 1 1 . 6 Average Overweight (x) . | . . . . Largest Inventory Capacity 15 | 10 15 15 15 Average Capacity 14 | 9 14 15 15 Most Carried 15 | 5 9 15 15 Average Carried 10 | 1 5 12 12 Final Capacity 15 | 10 15 15 15 Final Carried 15 | 2 7 15 12 Class Distribution -------------------- 100% | Hacker-Mutant Dominant Class ---------------- Hacker-Mutant | -10/Materials Hacker-Mutant | -10/Mines Hacker-Mutant | -10/Subcaves Resources | -11 -10 -10 -10 ----------- Run | Yrd Mat Min Sub Matter Collected 721 | 280 114 76 251 Remotely . | . . . . Salvage Created 1421 | 119 415 364 523 Parts 90 | 10 25 19 36 Haulers Intercepted 2 | . 2 . . Recyclers Shooed 2 | . 2 . . Parts Field Recycled . | . . . . Retrieved Matter . | . . . . Parts Self-Destructed . | . . . . Prevented . | . . . . Parts Restored . | . . . . Kills | -11 -10 -10 -10 ------- Run | Yrd Mat Min Sub Combat Hostiles Destroyed 28 | . 7 6 15 Guns 18 | . 6 1 11 Cannons 10 | . 1 5 4 Classes Destroyed 11 | 2 5 1 3 Worker 1 | . . 1 . Builder 2 | . 1 1 . Tunneler 3 | 3 . . . Hauler 2 | . 2 . . Recycler 3 | 1 . 2 . Watcher 1 | . 1 . . Swarmer 6 | . 2 3 1 Grunt 10 | . 5 3 2 Sentry 1 | . . . 1 Artisan 1 | . . . 1 Subdweller 11 | . . . 11 Best Kill Streak 3 | 2 3 2 2 Combat Bots Only 2 | . 2 2 2 Max Kills in Single Turn 1 | 1 1 1 1 Gunslinging . | . . . . Exploded . | . . . . Melee . | . . . . Uniques/NPCs Destroyed . | . . . . Combat | -11 -10 -10 -10 -------- Run | Yrd Mat Min Sub Hostile Shots Fired 221 | . 52 18 151 Missed 54 | . 15 8 31 Hits 167 | . 37 10 120 Projectile 167 | . 37 10 120 Critical Strikes 2 | . . . 2 Damage Taken 1832 | . 257 76 1499 Core 261 | . 44 24 193 Absorbed by Shields . | . . . . Ignored by Resistances 1111 | . 167 49 895 Core Remaining (%) 100 | 100 . . . Volleys Fired 177 | 10 58 16 93 Largest 2 | 2 2 2 2 Hottest 156 | 60 80 125 156 Shots Fired 270 | 20 71 32 147 Gun 190 | 20 62 16 92 Cannon 59 | . 9 16 34 Launcher . | . . . . Special 21 | . . . 21 Kinetic 121 | 10 58 12 41 Thermal 149 | 10 13 20 106 Explosive . | . . . . Electromagnetic . | . . . . Robot Hit Streak 48 | 8 10 10 48 Robot Miss Streak 2 | 1 2 1 2 Penetration Max . | . . . . Secondary Targets . | . . . . Shots Hit Robots 197 | 15 57 21 104 Core Hits 70 | 6 23 12 29 Critical Kills . | . . . . Critical Parts Destroyed 2 | . 1 . 1 Critical Strikes 3 | . 1 . 2 Burn 1 | . . . 1 Destroy 2 | . 1 . 1 Melee Attacks . | . . . . Impact . | . . . . Slashing . | . . . . Piercing . | . . . . Sneak Attacks . | . . . . Combat Hostiles . | . . . . Follow-up Attacks . | . . . . Damage Inflicted 2526 | 152 533 291 1550 Guns 1639 | 152 408 84 995 Cannons 719 | . 125 207 387 Explosions . | . . . . Melee . | . . . . Ramming . | . . . . Kinetic 928 | 50 361 55 462 Thermal 1598 | 102 172 236 1088 Explosive . | . . . . Electromagnetic . | . . . . Impact . | . . . . Slashing . | . . . . Piercing . | . . . . Highest Corruption . | . . . . Average Corruption . | . . . . Corruption Purged . | . . . . Corruption Blocked . | . . . . Overload Shots . | . . . . Overflow Damage 16 | . 16 . . Projectiles 16 | . 16 . . Explosions . | . . . . Melee . | . . . . Knockbacks . | . . . . Impact . | . . . . Kinetic . | . . . . Secondary . | . . . . Self-Inflicted Damage . | . . . . Shots . | . . . . Rammed . | . . . . Targets Rammed . | . . . . Kicked . | . . . . Crushed . | . . . . Highest Temperature 153 | 20 153 98 48 Average Temperature 30 | 14 41 39 14 Received Heat Transfer 774 | . 213 51 510 Siege Activations . | . . . . Martial Activations . | . . . . Shielding Activations . | . . . . Robots Disrupted . | . . . . Combat Hostiles . | . . . . Robots Corrupted . | . . . . Combat Hostiles . | . . . . Parts Fried . | . . . . Impact Corruptions . | . . . . Robots Melted . | . . . . Combat Hostiles . | . . . . Parts Melted 2 | . 1 . 1 Heat Transferred 3672 | 225 359 518 2570 Parts Sabotaged . | . . . . Parts Stolen . | . . . . Parts Stripped . | . . . . Power Chain Reactions . | . . . . Alert | -11 -10 -10 -10 ------- Run | Yrd Mat Min Sub Maximum Alert Level . | . . . . Low Security (%) 100 | 100 100 100 . Level 1 . | . . . . Level 2 . | . . . . Level 3 . | . . . . Level 4 . | . . . . Level 5 . | . . . . High Security . | . . . . Max Security . | . . . . Peak Influence 50 | 5 50 50 . Initial 2 | . 2 . . Average 4 | 1 4 4 . Influence Increases 486 | 20 196 170 100 Destroy 0b10 Robot/C 340 | . 140 120 80 Destroy 0b10 Robot/NC 60 | 20 20 20 . Destroy Leader 86 | . 36 30 20 Influence Decreases 486 | 15 201 170 100 Entered New Map 3 | . 3 . . Time Decay 483 | 15 198 170 100 Squads Dispatched . | . . . . Investigation . | . . . . Extermination . | . . . . Reinforcement . | . . . . Assault . | . . . . Garrison . | . . . . Intercept . | . . . . Searches Triggered . | . . . . Construction Impeded . | . . . . Haulers Reinforced . | . . . . Active Scanning Responses . | . . . . Cargo Convoy Interrupts . | . . . . Stealth | -11 -10 -10 -10 --------- Run | Yrd Mat Min Sub Distress Signals . | . . . . Communications Jammed . | . . . . Distress Signals . | . . . . Times Spotted 42 | . 17 8 17 Peak Tracking Total 3 | . 3 2 2 Tactical Retreats . | . . . . Traps | -11 -10 -10 -10 ------- Run | Yrd Mat Min Sub Traps Triggered 4 | . 4 . . Indirectly . | . . . . Trap Hack Attempts . | . . . . Triggered . | . . . . Disarmed . | . . . . Reprogrammed . | . . . . Reused . | . . . . Traps Extracted . | . . . . Installed . | . . . . Triggered . | . . . . Machines | -11 -10 -10 -10 ---------- Run | Yrd Mat Min Sub Machines Disabled 1 | . . . 1 Max in Single Turn 1 | . . . 1 Machines Repaired . | . . . . Machines Dismantled . | . . . . Machines Sabotaged . | . . . . Overloaded Fab Kills . | . . . . Hacking | -11 -10 -10 -10 --------- Run | Yrd Mat Min Sub Machines Accessed 7 | . 6 . 1 Terminals 6 | . 6 . . Fabricators . | . . . . Repair Stations . | . . . . Recycling Units . | . . . . Scanalyzers . | . . . . Garrison Access . | . . . . Total Hacks 9 | . 8 . 1 Successful 8 | . 7 . 1 Failed 1 | . 1 . . Catastrophic . | . . . . Database Lockouts . | . . . . Manual 7 | . 7 . . Terminals 8 | . 8 . . Fabricators . | . . . . Repair Stations . | . . . . Recycling Units . | . . . . Scanalyzers . | . . . . Garrison Access . | . . . . Terminal Hacks 2 | . 1 . 1 Robot Analysis 1 | . 1 . . Proto ID Catalog 1 | . . . 1 Fabricator Hacks . | . . . . Repair Station Hacks . | . . . . Recycling Unit Hacks . | . . . . Scanalyzer . | . . . . Garrison Access Hacks . | . . . . Unauthorized Hacks 6 | . 6 . . Terminals 6 | . 6 . . Botnet 6 | . 6 . . Fabricators . | . . . . Repair Stations . | . . . . Recycling Units . | . . . . Scanalyzers . | . . . . Garrison Access . | . . . . Data Cores Recovered . | . . . . Used . | . . . . Hacking Detections 1 | . 1 . . Full Trace Events . | . . . . Feedback Events . | . . . . Feedback Blocked . | . . . . Robot Schematics Acquired . | . . . . Robots Built . | . . . . Authchips . | . . . . Time . | . . . . Total Robot Build Rating . | . . . . Part Schematics Acquired . | . . . . Parts Built . | . . . . Authchips . | . . . . Time . | . . . . Total Part Build Rating . | . . . . Part Studies Acquired . | . . . . Parts Repaired . | . . . . Time . | . . . . Parts Recycled . | . . . . Recycled Matter . | . . . . Retrieved Matter . | . . . . Retrieved Components . | . . . . Parts Scanalyzed . | . . . . Part Schematics Acquired . | . . . . Parts Damaged . | . . . . Bothacking | -11 -10 -10 -10 ------------ Run | Yrd Mat Min Sub Used RIF Installer . | . . . . Robots Hacked . | . . . . Non-combat . | . . . . Combat . | . . . . Robot Hacks Applied . | . . . . Relay Couplers Released . | . . . . Fabnet Peak Effective % . | . . . . Robots Rewired . | . . . . Allies Hacked . | . . . . Hacks Repelled . | . . . . Allies | -11 -10 -10 -10 -------- Run | Yrd Mat Min Sub Total Allies . | . . . . Largest Group . | . . . . Highest-Rated Group . | . . . . Highest-Rated Ally . | . . . . Total Orders . | . . . . Ally Attacks . | . . . . Total Damage . | . . . . Kills . | . . . . Allies Corrupted . | . . . . Allies Melted . | . . . . Intel | -11 -10 -10 -10 ------- Run | Yrd Mat Min Sub Active Infowar (turns) 5377 | 122 1296 1060 2899 Sensors 3698 | 122 1296 1060 1220 Structural 5228 | . 1269 1060 2899 Robot Analysis Total 1 | . 1 . . Derelict Logs Recovered 1 | . . . 1 Drone Launches . | . . . . Drone Recoveries . | . . . . Exploration | -11 -10 -10 -10 ------------- Run | Yrd Mat Min Sub Turns Passed 5391 | 136 1296 1060 2899 Spaces Moved 2643 | 72 662 610 1299 Core 25 | 19 . . 6 Treads 2618 | 53 662 610 1293 Legs . | . . . . Wheels . | . . . . Hover . | . . . . Flight . | . . . . Fastest Speed 50 | 50 160 160 160 Average Speed 179 | 131 170 160 194 Slowest Speed 350 | 160 240 160 350 Overloaded Moves . | . . . . Propulsion Burnouts . | . . . . Robots Hopped . | . . . . Potential Cave-ins . | . . . . Cave-ins Triggered . | . . . . Exploration Rate (%) 65 | 4 99 99 59 Regions Visited 3 Branch Regions 2 Pre-discovered Areas . | . . . . Known Exits Taken 3 | 1 1 1 . Unknown Exits Taken . | . . . . Scrap Searched 14 | . . . 14 Spaces Dug 5 | . . . 5 Terrain Destroyed 5 | . . . 5 Melee . | . . . . Projectile 5 | . . . 5 AOE . | . . . . Terrain Rammed . | . . . . Walls Destroyed . | . . . . Machines Disabled . | . . . . Actions | -11 -10 -10 -10 --------- Run | Yrd Mat Min Sub Total 3014 | 94 769 666 1485 Wait 118 | . 25 25 68 Move 2640 | 71 661 609 1299 Hop . | . . . . Pick Up 36 | 6 14 8 8 Fast Attach 4 | 3 . 1 . Attach 18 | 4 6 . 8 Detach . | . . . . Swap 9 | . 2 3 4 Drop 12 | . 3 4 5 Fire 177 | 10 58 16 93 Melee . | . . . . Ram . | . . . . Kick . | . . . . Crush . | . . . . Escape Stasis . | . . . . Rewire . | . . . . Trap . | . . . . Miscellaneous . | . . . . Route ------- -11/Scrapyard -10/Materials (discovered 5 exits: *Mat x3 / *Min / *Sub) -10/Mines (discovered 3 exits: *Mat x2 / *Sub) -10/Subcaves (discovered 2 exits: *Mat x2) History --------- Turn | Location | Event 14 | -11/Scrapyard | Identified exit to Materials 14 | -11/Scrapyard | Discovered exit to Materials (range 16) 137 | -11/Scrapyard | Entered Materials 137 | -10/Materials | Evolved 1 slot: Utility x1 311 | -10/Materials | Build established: Hacker-Mutant 347 | -10/Materials | Identified exit to Materials 347 | -10/Materials | Discovered exit to Materials (range 10) 636 | -10/Materials | Identified exit to Subcaves 636 | -10/Materials | Discovered exit to Subcaves (range 8) 773 | -10/Materials | Identified exit to Mines 773 | -10/Materials | Discovered exit to Mines (range 16) 1027 | -10/Materials | Discovered exit to Materials (range 14) 1209 | -10/Materials | Discovered exit to Materials (range 9) 1433 | -10/Materials | Entered Mines 1763 | -10/Mines | Joined a pair of Derelicts in attacking an 0b10 outpost 1836 | -10/Mines | Discovered exit to Materials (range 9) 1991 | -10/Mines | Discovered exit to Materials (range 8) 2015 | -10/Mines | Discovered exit to Subcaves (range 17) 2493 | -10/Mines | Entered Subcaves 2494 | -10/Subcaves | Approached by a straggling Scientist 2618 | -10/Subcaves | Disturbed a concealed Subdweller 2846 | -10/Subcaves | Shifting Twisted Machinery released Barrage Gun 2854 | -10/Subcaves | Shifting Twisted Machinery released Sub. Machine Gun 3011 | -10/Subcaves | Visited 4L-MR0's lab 3090 | -10/Subcaves | Ambushed by Subdwellers from Twisted Machinery 3093 | -10/Subcaves | Shifting Twisted Machinery released Flamer 3105 | -10/Subcaves | Identified exit to Materials 3105 | -10/Subcaves | Discovered exit to Materials (range 9) 3169 | -10/Subcaves | Lost 4 parts (1p2n1w) 3209 | -10/Subcaves | Shifting Twisted Machinery released Flamer 3426 | -10/Subcaves | Disturbed a concealed Subdweller 3608 | -10/Subcaves | Discovered exit to Materials (range 12) 3610 | -10/Subcaves | Learned 2 Materials zone layouts 3694 | -10/Subcaves | Core integrity fell below 50% 3744 | -10/Subcaves | Lost 3 parts (1u2w) 3964 | -10/Subcaves | Disturbed a concealed Subdweller 5365 | -10/Subcaves | Core integrity fell below 20% 5392 | -10/Subcaves | Destroyed by 0I-HP4(R) with Subdweller Laser Last Messages --------------- 03998_ Acquired Mining Laser. 04178_ PE-WGL(u) builds Twisted Machinery. 04227_ Dropped Mak. Flight Unit. 04291_ Searching scrap... 04291_ Found Sub. Laser. 04291_ Found Sub. Monowheel. 04291_ Found 46 Matter. 04292_ Acquired 30 matter. 04315_ Acquired 4 matter. 04402_ Subatomizers dissect the Sub. Monowheel. 04462_ PE-WGL(u) tweaks Twisted Machinery. 04707_ Y-45 Defender destroyed. 05356_ Mining Laser destroyed. 05358_ Lgt. Treads destroyed. 05366_ Imp. Ion Engine destroyed. 05367_ UX-LH1(R) destroyed. 05372_ Barrage Gun destroyed. 05373_ Acquired 32 matter. 05377_ 0I-HP4(R) affixes Scrap Shield Fragment to Scrap Shield. Map ----- +----------------------------------------------------+ | ?????????## ### ?????????????????????????????? | | ?????????### #####?????????????????????????????? | | ?????????### ## ##?????????????????????????????? | | ?????????### ##?????????????????????????????? | | #????????## ##?????????????????????????????? | | #??????#### ##?????????????????????????????? | | #??????#### ###?????????????????????????????? | | #??????## ####????????????????????????????? | | #??????### ####???????????????????????????? | | #??????### ## ???????????????????????????? | | #?????##### # ???????????????????????????? | | ########### "##???????????????????????????? | | ######## ## "###??????????????????????????? | | ## ### " ##??????????????????????????? | | ##### "###??###?????????????????????? | | "############## ?????????????????????? | | ##??#######" ???????????????????? | | % ## ##???????#"" ??????????????????? | | ###### ###???????? "" ###?????????????????? | | ### ###########?????????"" ####????????????????? | | #######??#####?????????? "" ###????????????????? | | ######?????????????????? "" ##????????????????? | | ???????????????????????# "" ####???????????????? | | ?????????????????????#### "" ### ???????????????? | | ????????????????????##### "" ##???????????????? | | ????????????????????### @ " # ???????????????? | | ????????????????????## "" # ???????????????? | | ????????????????????### "" # ???????????????? | | ????????????????????### "" ##???????????????? | | ??????????????????#####R ## ???????????????? | | ?????????????????#####%! ## ###???????????????? | | ????????????????#### = * ### # ????????????????? | | ????????????????### ####? ??????????????? | | ?????????????##### ####?? ## ##??????????????? | | #####????????##### ###???######??????????????? | | ######???????## #####?######??????????????? | | # ####??????### #######???????????????????? | | ###??????#### #####??????????????????? | | ##???????#### ###??????????????????? | | ##?????####### ##??????????????????? | | ### ##?????#### ## ##??????????????????? | | ### ##?????## ## ## #####??????????????????? | | ## ##?????## ### ########??????????????????? | | ## ###?????## #### #####?????????????????????? | | ###????### ## ###???????????????????????? | | ##????### ##???????????????????????? | | ###??### ##???????????????????????? | | ######## ###???????????????????????? | | ###### ######???????????????????????? | | ## #####????????????????????????? | +----------------------------------------------------+ Best States ------------- Heat Dissipation 25 Energy Generation 12 Energy Capacity 265 Matter Stores 300 Matter Capacity 300 Sight Range 16 Robot Scan Range 14 Terrain Scan Density 10 Resistance: KI 35 Resistance: TH 35 Resistance: EX 35 Resistance: EM 35 Resistance: I 35 Resistance: S 35 Resistance: P 35 Evasion (%) 50 Recoil Reduction 2 Offensive Hacking 20 Item Schematics ----------------- None Robot Schematics ------------------ None Fabricated ------------ Nothing Repaired ---------- Nothing Studied --------- None Alien Tech Used ----------------- None Achievements -------------- None Challenges ------------ None Game ------ Seed SmartTerrainBroadsword Manual? 0 Play Time 00:26:11 Cumulative 233.7 hours Start 2025.12.29 @ 13:07:38 End 2025.12.29 @ 13:31:28 Sessions 1 Manual Loads 0 Difficulty Explorer Special Mode None Game No. 367 Rogue 0 Adventurer 0 Explorer 367 Win Type - Total 0 Types 0/0/0/0/0/0/0/0/0/0 Lore% 71 Gallery% 68 Achievement% 54 Wizard Run 0 Options --------- Layout 1 ASCII 0 Keyboard 0 Movement Mouse Keybinds 0 Fullscreen 1 Font 24/Smallcaps Map View 50x35 Zoom Use 0% Tactical HUD 1 Map Filters NONE Filters NONE Steam 1 RUN: da61c3be-5508-4cd9-bdc5-dc53b585658c